Cogmind - Beta 16.1 @@@ ROGUE MODE // 2026.02.27 @ 20:24:12 Player: JuustuToug Result: Heading to fleet! Performance ------------- Evolutions (9) 4500 Regions Visited (25) 5000 Robots Destroyed (433) 2165 Value Destroyed (19385) 19385 Prototype IDs (85) 1700 Alien Tech Used (8) 1600 Bonus (15113) 15113 TOTAL SCORE: 49463 Bonus ------- High Alert Combat Kills 1512 Follower Combat Kills 3590 Hunted by Unchained 500 Network Hubs Disabled 400 Registered with UFD 300 Met Optimus in HQ 500 Met Warlord at Base 500 MAIN.C Attacked Warlord 500 Warlord Defense Kills 1924 Built Enhanced Grunts 300 A7 Reached Mainframe 300 Met R17 at Cetus 500 Used Core Reset Matrix 3000 Met R17 at Research 2000 Win 3000 Friendly Fire -3713 Cogmind --------- Core Integrity 535/1600 Matter 146/300 Energy 79/100 System Corruption 0% +Membrane Temperature Cool (17) Movement Treading (151) +NEM 1 Location To Fleet Rendezvous Parts ------- > --- POWER (2) -------- (None) > --- PROPULSION (5) --- Armored Medium Treads Advanced Medium Treads Advanced Medium Treads Advanced Medium Treads > --- UTILITY (15) ----- High-capacity Storage Unit Machine Analyzer Advanced Signal Interpreter Graphene Brace Improved Focal Shield System Mapper > --- WEAPON (3) ------- Graviton Cannon > --- INVENTORY (20) --- Armored Medium Treads Advanced Coolant Injector Compact Matter Pod (0) Advanced Sensor Array Transdimensional Reconstructor Compact HERF Cannon Compact Tesla Bomb Launcher Advanced Micro-nuke Launcher Sigix Terminator (1) Peak State ------------ > --- POWER ------------ Vortex Chain Reactor > --- PROPULSION ------- Advanced Medium Treads Armored Heavy Treads High-density Centrium Heavy Treads > --- UTILITY ---------- Coolant Network High-capacity Storage Unit Machine Analyzer Advanced Signal Interpreter Experimental Core Analyzer Advanced Particle Charger Advanced Transmission Jammer Medium Regenerative Plating Improved Focal Shield Experimental Force Field System Mapper Microwarp Drive > --- WEAPON ----------- Enhanced Nova Cannon Potential Cannon > --- INVENTORY -------- Quantum Reactor Improved Quantum Reactor Armored Medium Treads Armored Medium Treads Advanced Medium Treads Advanced Medium Treads Advanced Medium Treads Advanced Coolant Injector Compact Matter Pod Advanced Sensor Array Quantum Capacitor Graphene Brace Transdimensional Reconstructor Compact HERF Cannon Graviton Cannon Compact Tesla Bomb Launcher Advanced Micro-nuke Launcher Sigix Terminator [Rating: 233] Favorites ----------- Power Neutrino Core Engine Improved Deuterium Engine Power Core Neutrino Core Reactor Light Antimatter Reactor Propulsion Armored Treads Treads Armored Treads Leg Flexi-carbon Leg Wheel Compact Wheel Utility High-capacity Storage Unit Device Advanced Sensor Array Storage High-capacity Storage Unit Processor Machine Analyzer Hackware System Mapper Protection Medium Regenerative Plating Artifact Microwarp Drive Weapon Gauss Rifle Energy Gun Heavy Particle Gun Energy Cannon Enhanced Nova Cannon Ballistic Gun Gauss Rifle Ballistic Cannon Graviton Cannon Launcher Advanced Micro-nuke Launcher Special Weapon CPS Tube Impact Weapon Thunder Hammer Slashing Weapon Centrium Greatsword Piercing Weapon Plasma Lance Build | -11 -10 -10 -9 -9 -8 -7 -7 -7 -7 -5 -5 -5 -5 -4 -4 -4 -4 -4 -4 -3 -3 -2 -2 -2 -1 ------- Run | Yrd Mat Min Mat Min Mat Fac Sto Rec Scr Fac Upp Upp War Pro Fac Ext Cet Arc Hub Res Tes Res Qua Sec Acc Slots Evolved 18 | . . . 2 . 2 2 . . . 4 . . . . 2 . . . . 2 . 2 . . 2 Power 1 | . . . . . . . . . . 1 . . . . . . . . . . . . . . . Propulsion 3 | . . . 1 . 1 . . . . . . . . . 1 . . . . . . . . . . Utility 13 | . . . 1 . . 2 . . . 3 . . . . 1 . . . . 2 . 2 . . 2 Weapon 1 | . . . . . 1 . . . . . . . . . . . . . . . . . . . . Parts Attached 332 | 7 6 . 16 1 36 10 5 6 8 33 1 2 24 1 24 33 13 2 1 27 18 6 29 7 16 Power 44 | 1 1 . 2 . 3 1 1 . 1 6 . . 2 . 3 6 1 . . 5 1 4 3 1 2 Engine 12 | 1 1 . 2 . 1 1 . . 1 1 . . . . 3 1 . . . . . . . . . Core 11 | . . . . . 2 . 1 . . 4 . . 1 . . 2 . . . 1 . . . . . Reactor 21 | . . . . . . . . . . 1 . . 1 . . 3 1 . . 4 1 4 3 1 2 Propulsion 75 | 2 . . 6 . 13 1 . 2 1 7 . . 4 . 10 10 2 . . 3 1 1 6 1 5 Treads 61 | 2 . . 6 . 13 . . 2 1 7 . . 3 . 2 6 2 . . 3 1 1 6 1 5 Leg 8 | . . . . . . . . . . . . . 1 . 3 4 . . . . . . . . . Wheel 6 | . . . . . . 1 . . . . . . . . 5 . . . . . . . . . . Hover . | . . . . . . . . . . . . . . . . . . . . . . . . . . Flight . | . . . . . . . . . . . . . . . . . . . . . . . . . . Utility 124 | 2 2 . 4 1 7 3 2 4 4 10 1 1 13 1 9 8 7 2 1 13 10 . 11 3 5 Device 76 | 1 1 . 2 1 2 1 1 1 4 8 1 1 7 1 4 6 3 2 1 8 6 . 9 1 4 Storage 8 | 1 1 . 1 . 2 . . . . . . . . . . . . . . . 1 . . 1 1 Processor 16 | . . . . . . 2 . . . 1 . . 3 . 2 . . . . 5 2 . 1 . . Hackware 1 | . . . . . . . . . . . . . . . 1 . . . . . . . . . . Protection 21 | . . . 1 . 3 . 1 3 . 1 . . 3 . 2 2 4 . . . 1 . . . . Artifact 2 | . . . . . . . . . . . . . . . . . . . . . . . 1 1 . Weapon 89 | 2 3 . 4 . 13 5 2 . 2 10 . 1 5 . 2 9 3 . . 6 6 1 9 2 4 Energy Gun 15 | 2 . . . . 3 . 1 . 1 2 . 1 1 . 1 1 1 . . . 1 . . . . Energy Cannon 28 | . . . . . 5 3 . . 1 1 . . 1 . . . . . . 2 3 1 6 2 3 Ballistic Gun 30 | . 2 . 2 . 4 2 . . . 5 . . 2 . . 7 2 . . 3 . . 1 . . Ballistic Cannon 2 | . . . . . . . . . . . . . . . . . . . . . . . 1 . 1 Launcher 9 | . 1 . 2 . 1 . 1 . . 1 . . . . . . . . . 1 2 . . . . Special Weapon 1 | . . . . . . . . . . . . . . . . 1 . . . . . . . . . Impact Weapon 2 | . . . . . . . . . . 1 . . . . . . . . . . . . 1 . . Slashing Weapon 1 | . . . . . . . . . . . . . . . 1 . . . . . . . . . . Piercing Weapon 1 | . . . . . . . . . . . . . 1 . . . . . . . . . . . . Special Melee Weapon . | . . . . . . . . . . . . . . . . . . . . . . . . . . Unidentified Prototypes 66 | . 1 . . . 5 . 1 . . 3 . . 13 . 3 . 8 . . 7 12 . 9 4 . Corrupted Parts 1 | . . . . . . . . . . . . . . . . . 1 . . . . . . . . System Corruption 7 | . . . . . . . . . . . . . . . . . 7 . . . . . . . . Parts Lost 73 | . . . 1 1 1 . 2 . . 11 . . 14 8 7 . . . 2 . 3 . 4 . 19 Power 11 | . . . . . . . 1 . . 2 . . . 1 3 . . . 1 . . . . . 3 Propulsion 17 | . . . . . 1 . . . . 3 . . 6 3 . . . . . . . . . . 4 Utility 31 | . . . 1 1 . . . . . 4 . . 5 2 3 . . . 1 . 2 . 3 . 9 Weapon 14 | . . . . . . . 1 . . 2 . . 3 2 1 . . . . . 1 . 1 . 3 Highest Loss Streak 10 | . . . 1 1 1 . 1 . . 8 . . 8 5 3 . . . 1 . 1 . 2 . 10 To Critical Strikes . | . . . . . . . . . . . . . . . . . . . . . . . . . . Average Backups 17 | 1 8 14 14 16 19 19 19 19 19 18 20 20 18 12 14 18 19 19 18 17 16 16 16 16 14 Power 1 | . 1 1 . 1 1 1 1 . . 1 1 1 1 1 . . 1 1 1 1 1 2 2 1 1 Propulsion 3 | . 1 3 2 4 5 6 5 4 5 3 3 3 2 . 1 3 3 3 3 3 4 4 2 4 3 Utility 5 | . 1 4 3 3 5 6 7 10 9 7 7 7 7 5 6 6 4 4 3 4 3 3 3 3 3 Weapon 6 | . 3 6 7 7 7 6 5 5 4 6 7 7 6 5 4 7 9 10 10 8 6 7 7 6 5 Tool/Special . | . . . . . . . . . . . . . . . . . . . . . . . . . . Unused Backups 85 | . 5 . 6 . 20 . . 1 8 3 . 1 1 . 2 11 3 2 . 6 3 . 4 6 3 Power 10 | . . . 1 . 3 . . . 2 . . . . . . . . . . . . . 1 3 . Propulsion 22 | . . . 1 . 4 . . . . . . . . . 1 7 2 . . . . . 3 3 1 Utility 22 | . 3 . . . 3 . . 1 6 3 . 1 . . 1 1 . . . 1 2 . . . . Weapon 29 | . 2 . 4 . 10 . . . . . . . . . . 3 1 2 . 5 1 . . . 1 Tool/Special 2 | . . . . . . . . . . . . . 1 . . . . . . . . . . . 1 Average Slot Usage (%) 90 | . 100 100 99 99 99 98 91 99 96 96 94 94 85 78 84 89 90 88 88 86 79 77 79 77 72 Engine 3 | . 14 14 10 11 7 7 6 . 3 5 . . . . 7 2 . . . . . . . . . Core 2 | . . . . . 1 . . 7 3 3 11 11 4 4 . 2 3 . . 1 4 . . . . Reactor 2 | . . . . . . . . . . 1 . . 2 . . 4 6 10 9 7 4 7 7 4 5 Treads 21 | . 28 28 32 33 35 27 15 29 30 23 23 23 22 12 1 12 18 15 15 13 14 13 12 13 11 Leg 1 | . . . . . . . . . . . . . . 5 8 9 . . . . . . . . . Device 13 | . 14 14 12 17 11 7 7 7 6 18 17 17 15 17 10 9 12 14 15 14 15 20 20 19 23 Storage 6 | . 14 14 11 11 9 7 7 7 7 5 5 5 5 5 5 5 5 5 5 3 4 4 4 4 4 Processor 11 | . . . . . . 14 15 15 15 13 11 11 13 11 14 15 15 15 15 19 15 13 13 13 11 Hackware 1 | . . . . . . . . . . . . . . . 4 5 5 5 5 4 4 4 4 4 4 Protection 4 | . . . 8 4 6 7 7 6 4 3 5 5 3 1 4 5 5 5 5 4 3 4 3 4 2 Energy Gun 3 | . 5 . . . 4 . 1 7 13 9 5 5 2 1 4 . 4 5 5 1 . . . . . Energy Cannon 3 | . . . . . 8 14 12 7 1 . . . . 3 . . . . . 2 7 8 7 13 8 Ballistic Gun 9 | . 22 28 21 21 13 6 6 7 7 5 11 11 11 10 7 14 10 10 10 7 1 . 2 . . Peak Build Rating 233 | 7 13 13 16 17 38 47 52 46 54 80 77 79 108 90 120 128 157 155 152 169 184 197 208 221 233 Average Rating 92 | 5 11 13 15 16 33 44 46 43 49 72 75 77 82 77 97 119 143 152 151 161 173 190 191 202 204 On Entrance 88 | . 7 13 13 16 17 38 47 47 44 51 75 77 79 86 48 105 128 152 152 145 163 176 187 203 220 Avg Prop Armor Cover (%) 6 | . . . . . . 15 14 . . . . . 2 2 5 3 . . . . 4 4 3 5 4 Naked Turns . | . . . . . . . . . . . . . . . . . . . . . . . . . . Heaviest Build 150 | 15 32 32 57 58 71 72 70 65 68 87 87 89 101 81 109 114 112 94 93 126 132 135 149 144 150 Greatest Support 195 | 40 40 40 60 60 83 80 40 82 90 99 91 91 104 81 98 154 187 187 187 187 195 195 195 195 192 Greatest Overweight (x) 4 | . . . 1 . . 2 2 2 . 1 . . 1 2 4 1 . . . . . . 1 . . Average Overweight (x) . | . . . . . . . 1 . . . . . . . 1 . . . . . . . . . . Largest Inventory Capacity 20 | 8 15 15 20 20 20 20 20 20 20 20 20 20 20 20 20 20 20 20 20 20 20 20 20 20 20 Average Capacity 19 | 6 9 15 15 20 20 20 20 20 20 20 20 20 20 20 20 20 20 20 20 19 20 20 20 20 20 Most Carried 20 | 4 14 15 16 17 20 20 20 20 20 20 20 20 20 15 20 20 20 20 20 20 20 20 20 20 20 Average Carried 18 | 1 8 14 14 16 19 19 19 19 19 19 20 19 18 13 16 19 19 19 19 19 19 19 19 19 18 Final Capacity 20 | 8 15 15 20 20 20 20 20 20 20 20 20 20 20 20 20 20 20 20 20 20 20 20 20 20 20 Final Carried 20 | 4 14 15 16 17 20 20 19 20 20 20 20 20 13 15 20 20 20 20 20 20 20 19 20 19 10 Scrap Suit Usage (%) 1 | . . . . . . . . . . 12 1 1 . . . . . . . . . . . . . Parts Cannibalized 7 | . . . . . . . . . . 7 . . . . . . . . . . . . . . . Class Distribution -------------------- 20% | Scavenger-Skirmisher 17% | Skirmisher 13% | Scavenger-Gunner 10% | Scavenger-Mutant 9% | Scavenger-Tank 8% | Mutant 7% | Tank 4% | Hacker-Tank Dominant Class ---------------- Mutant | -10/Materials Mutant | -10/Mines Scavenger-Mutant | -9/Materials Scavenger-Mutant | -9/Mines Tank | -8/Materials Skirmisher | -7/Factory Skirmisher | -7/Storage Skirmisher | -7/Recycling Skirmisher | -7/Scraptown Scavenger-Gunner | -5/Factory Scavenger-Skirmisher | -5/Upper Caves Scavenger-Skirmisher | -5/Upper Caves Scavenger-Mutant | -5/Warlord Scavenger-Gunner | -4/Proximity Caves Scavenger-Mutant | -4/Factory Scavenger-Tank | -4/Extension Scavenger-Tank | -4/Cetus Scavenger-Gunner | -4/Archives Scavenger-Gunner | -4/Hub_04(d) Scavenger-Skirmisher | -3/Research Scavenger-Gunner | -3/Testing Scavenger-Skirmisher | -2/Research Scavenger-Skirmisher | -2/Quarantine Hacker-Tank | -2/Section 7 Alien-Gunner | -1/Access Resources | -11 -10 -10 -9 -9 -8 -7 -7 -7 -7 -5 -5 -5 -5 -4 -4 -4 -4 -4 -4 -3 -3 -2 -2 -2 -1 ----------- Run | Yrd Mat Min Mat Min Mat Fac Sto Rec Scr Fac Upp Upp War Pro Fac Ext Cet Arc Hub Res Tes Res Qua Sec Acc Matter Collected 12525 | 207 428 78 739 236 1175 245 281 242 775 1213 159 211 824 260 806 1503 452 164 . 729 386 252 715 309 136 Remotely . | . . . . . . . . . . . . . . . . . . . . . . . . . . Salvage Created 22413 | 68 928 100 841 324 2166 613 548 788 253 1905 251 234 927 167 1279 3019 471 251 87 979 1137 545 2382 1106 1044 Parts 1082 | 14 56 12 77 9 106 24 25 30 5 114 9 7 31 8 58 114 33 12 5 37 56 29 115 54 42 Haulers Intercepted 13 | . 1 . 3 . 6 . . . . 1 . . . . . 2 . . . . . . . . . Recyclers Shooed 10 | . 3 . . 1 . 1 . . . 1 . . . . 1 3 . . . . . . . . . Parts Field Recycled . | . . . . . . . . . . . . . . . . . . . . . . . . . . Retrieved Matter . | . . . . . . . . . . . . . . . . . . . . . . . . . . Parts Self-Destructed 22 | . . . . . . . . . 5 . . 9 . 8 . . . . . . . . . . . Prevented 2 | . . . . . . . . . . . 2 . . . . . . . . . . . . . . Parts Restored . | . . . . . . . . . . . . . . . . . . . . . . . . . . Kills | -11 -10 -10 -9 -9 -8 -7 -7 -7 -7 -5 -5 -5 -5 -4 -4 -4 -4 -4 -4 -3 -3 -2 -2 -2 -1 ------- Run | Yrd Mat Min Mat Min Mat Fac Sto Rec Scr Fac Upp Upp War Pro Fac Ext Cet Arc Hub Res Tes Res Qua Sec Acc Combat Hostiles Destroyed 295 | . 15 3 20 4 37 12 8 4 . 31 . 3 18 2 18 19 1 2 1 14 16 11 26 16 14 Melee 2 | . . . . . . . . . . . . . . . 2 . . . . . . . . . . Guns 127 | . 11 3 10 4 23 1 . 4 . 21 . 1 12 2 8 19 1 2 1 4 . . . . . Cannons 91 | . . . . . 11 4 5 . . . . . . . . . . . . 7 13 8 23 14 6 AOE 64 | . 4 . 10 . 3 7 2 . . 9 . 2 6 . 8 . . . . 3 1 2 . . 7 Classes Destroyed 28 | 2 8 . 3 1 1 1 . . . 2 1 . 2 . . 1 . . . 3 1 . 2 . . Worker 20 | 1 1 . 3 . 2 1 . . . 9 . . . . 2 . . . . . . . . . 1 Builder 22 | . 1 . 6 . . . 2 2 . 5 . . . . 3 2 . . . 1 . . . . . Tunneler 7 | 3 . 2 . 1 . . . . . 1 . . . . . . . . . . . . . . . Hauler 13 | . 1 . 3 . 6 . . . . 1 . . . . . 2 . . . . . . . . . Recycler 32 | . 4 . . 2 1 1 1 6 . 2 . . . . 5 8 . . . 1 . . . . 1 Mechanic 9 | . . . 1 . 2 2 . . . 2 . . . . 1 . . . . . . . 1 . . Operator 12 | . 3 . . . 2 . . . . . . . . . . . . 3 . . 2 . 2 . . Watcher 16 | . 1 . 3 . 1 2 . . . 1 . . . . . 1 1 . . 1 1 . 1 2 1 Swarmer 58 | . 6 3 9 . 6 . . . . 11 . 3 1 . 9 . . . . . . 5 . 5 . Saboteur 3 | . . . . . . . . . . 1 . . 2 . . . . . . . . . . . . Grunt 95 | . 6 . 6 2 18 5 5 . . 6 . . 9 . 2 10 . . . 3 4 2 7 4 6 Brawler 11 | . . . . 2 1 3 . . . . . . 3 . . 1 . . . 1 . . . . . Duelist 3 | . . . 1 . . . . . . . . . . . . . . . . . . . . . 2 Protector 1 | . . . . . . . . . . . . . 1 . . . . . . . . . . . . Sentry 36 | . . . 4 . 9 1 1 4 . . . . . . 1 5 . 2 1 3 . 1 3 1 . Demolisher 1 | . . . . . . . . . . . . . . . . . . . . 1 . . . . . Specialist 3 | . . . . . . . . . . . . . . . . . . . . . 3 . . . . Hunter 22 | . . . . . 3 1 2 . . 4 . . 1 . . 1 . . . 3 2 . 3 . 2 Programmer 49 | . . . . . . 2 . . . 8 . . 1 1 6 2 . . . . 6 3 11 5 4 Heavy 1 | . . . . . . . . . . 1 . . . . . . . . . . . . . . . Behemoth 1 | . . . . . . . . . . . . . . 1 . . . . . . . . . . . Cetus Guard 1 | . . . . . . . . . . . . . . . . . 1 . . . . . . . . S7 Guard 1 | . . . . . . . . . . . . . . . . . . . . . . . . 1 . Enhanced Grunt 2 | . . . . . . . . . . . . . . . . . 2 . . . . . . . . Striker 2 | . . . . . . . . . . . . . . . . . . . . 2 . . . . . Executioner 1 | . . . . . . . . . . . . . . . . . . . . 1 . . . . . Alpha 7 1 | . . . . . . . . . . . . . . . . . . . . . . . 1 . . Fortress 1 | . . . . . . . . . . . . . . . . . . . . . . . 1 . . Protovariant G 1 | . . . . . . . . . . . . . . . . . . . . . 1 . . . . Subdweller 3 | . 3 . . . . . . . . . . . . . . . . . . . . . . . . Scrapoid 1 | . . . . . . . . . . . . . . . . 1 . . . . . . . . . Decomposer 2 | . . . . . . . . . . . . 2 . . . . . . . . . . . . . Packrat 1 | . . . . . . . . . . . 1 . . . . . . . . . . . . . . Samaritan 4 | . . . . . . . . . . . 4 . . . . . . . . . . . . . . Thug 1 | . . . . . . . . . . . . . . . . 1 . . . . . . . . . Savage 1 | . . . . . . . . . . . . . . . . . 1 . . . . . . . . Marauder 1 | . . . . . . . . . . . . . 1 . . . . . . . . . . . . Best Kill Streak 11 | 3 4 4 10 2 7 11 5 5 . 9 . 3 6 2 6 5 2 2 1 6 3 4 5 4 5 Combat Bots Only 8 | . 3 4 5 2 6 8 4 1 . 5 . 3 6 2 6 3 1 1 1 6 3 4 4 4 5 Max Kills in Single Turn 11 | 1 2 1 4 1 2 11 2 3 . 7 1 2 2 1 5 2 1 1 1 2 1 1 1 1 5 Gunslinging 1 | . . . . . . . . . . 1 . . . . . 1 . . . . . . . . . Exploded 7 | . 2 . 2 . 2 7 2 . . 3 . 2 2 . 4 . . . . 2 1 1 . . 4 Melee 1 | . . . . . . . . . . . . . . . 1 . . . . . . . . . . Uniques/NPCs Destroyed 2 | . . . . . . . . . . . . . . . . . 1 . . 1 . . . . . A7 (-4/Cetus) Revision 17++ (-3/Research) Combat | -11 -10 -10 -9 -9 -8 -7 -7 -7 -7 -5 -5 -5 -5 -4 -4 -4 -4 -4 -4 -3 -3 -2 -2 -2 -1 -------- Run | Yrd Mat Min Mat Min Mat Fac Sto Rec Scr Fac Upp Upp War Pro Fac Ext Cet Arc Hub Res Tes Res Qua Sec Acc Hostile Shots Fired 2561 | . 48 15 58 22 142 55 120 51 . 224 . 10 210 65 168 62 23 9 82 78 177 51 233 204 454 Missed 713 | . 14 4 17 6 32 20 30 22 . 58 . 3 68 25 60 19 5 4 27 21 48 4 41 47 138 Hits 1848 | . 34 11 41 16 110 35 90 29 . 166 . 7 142 40 108 43 18 5 55 57 129 47 192 157 316 Melee 24 | . . . 1 6 . . . . . . . . 2 . . 1 . . . . . . . . 14 Projectile 1824 | . 34 11 40 10 110 35 90 29 . 166 . 7 140 40 108 42 18 5 55 57 129 47 192 157 302 AOE 27 | . . . . . . . . . . 4 . . 13 . 3 . . . . 7 . . . . . Critical Strikes 93 | . 1 . 1 1 2 . 2 . . 5 . . 2 2 8 5 2 . 3 1 13 2 17 10 16 Actively Blocked 41 | . . . . . . . . . . . . . . . . 4 2 . 3 . 2 2 17 4 7 Part Disruptions 4 | . . . . . . . . . . 2 . . . . . . . . . . 1 . . 1 . Damage Taken 35880 | . 497 84 578 354 1512 842 1078 203 . 3594 . 99 3115 1103 2190 655 450 124 843 1627 2490 945 4218 2731 6548 Core 4147 | . 51 7 63 50 129 73 211 17 . 408 . . 405 161 171 25 49 . 68 140 92 24 540 398 1065 Absorbed by Shields 4280 | . . . . . 84 . . . . . . . 83 . . 300 144 . . 186 250 160 162 677 2234 Reduced by Siege Mode 730 | . . . . . . . . . . . . . . . . . . . . 24 141 58 390 15 102 Redirected to Core 373 | . . . . . . . . . . . . . . . . . . . . . . . 373 . . Ignored by Resistances 594 | . . . . . . . . . . . . . . . . . . 18 . 63 . . . 451 62 Regen/Repaired (Parts) 5293 | . . . . . 109 . . . . 45 . . 38 . . . 50 53 38 1245 364 218 1029 1749 355 Core Remaining (%) 58 | 100 . 76 . 71 76 . . . 57 . . . . 2 . . . . 72 . 82 . . 16 33 Volleys Fired 1257 | 4 49 12 69 21 112 25 32 15 8 78 9 8 62 11 41 74 28 14 8 68 109 62 184 113 41 Largest 3 | 2 2 2 2 2 3 3 3 3 2 3 3 3 3 3 3 3 3 3 2 3 1 1 1 3 2 Hottest 360 | 100 100 46 46 46 178 178 178 158 83 193 119 145 137 146 134 101 310 150 240 240 200 200 120 360 258 Shots Fired 2297 | 8 93 24 124 37 330 58 86 45 16 207 28 22 119 30 109 218 83 41 10 96 109 62 185 114 43 Gun 1472 | 8 88 24 110 32 243 17 32 30 16 200 28 21 102 22 102 216 83 41 10 47 . . . . . Cannon 750 | . . . . . 84 35 52 15 . . . . 1 8 . 1 . . . 46 106 60 185 114 43 Launcher 74 | . 5 . 14 5 3 6 2 . . 7 . 1 16 . 7 . . . . 3 3 2 . . . Special 1 | . . . . . . . . . . . . . . . . 1 . . . . . . . . . Kinetic 1115 | . 66 24 110 32 179 17 29 15 8 72 17 14 99 22 68 216 65 27 4 28 . . . . 3 Thermal 1091 | 8 22 . . . 148 35 55 30 8 128 11 7 4 8 34 1 18 14 6 65 105 60 173 114 37 Explosive 70 | . 5 . 14 5 1 6 . . . 7 . 1 16 . 7 . . . . 3 3 2 . . . Electromagnetic 20 | . . . . . 2 . 2 . . . . . . . . . . . . . 1 . 12 . 3 Robot Hit Streak 29 | 6 22 5 15 10 20 12 9 10 12 13 20 4 13 7 12 18 12 7 1 9 18 10 24 29 5 Robot Miss Streak 8 | . 2 2 7 3 5 2 3 3 1 6 2 1 5 2 2 8 3 3 2 4 3 2 3 3 1 Penetration Max 2 | . . . . . . 1 1 1 . 2 . 1 2 . . 1 1 1 . 1 . . . . . Secondary Targets 20 | . 1 . . . 2 . . . . 6 . . 3 . 1 6 . 1 . . . . . . . Max Gunslinging Chain 2 | . 1 . . . 1 . . . . 2 . . 1 . 1 1 . 1 . . . . . . . Capacitor 510 | . . . . . . . . . . . . . . . . . . . . 46 104 60 178 87 35 Shots Hit Robots 1327 | 6 56 15 74 23 191 25 40 27 13 120 19 11 68 24 71 138 52 24 1 55 61 25 122 51 15 Core Hits 803 | 4 37 5 48 10 86 25 20 19 6 95 12 8 79 8 52 80 19 12 1 35 26 17 52 28 19 Critical Kills 51 | . . . . 1 . . 1 . . 2 . . 5 . 5 20 4 2 . 4 2 1 2 1 1 Critical Parts Destroyed 56 | . . . . . 1 . . . . 2 . . 15 . 3 22 9 3 . 1 . . . . . Critical Strikes 134 | . 1 . . 1 5 . 1 . . 8 1 . 20 1 10 50 15 6 . 8 2 1 2 1 1 Burn 11 | . 1 . . . 4 . . . . 4 1 . . . 1 . . . . . . . . . . Meltdown 8 | . . . . . . . 1 . . . . . . . . . . . . . 2 1 2 1 1 Destroy 114 | . . . . 1 1 . . . . 3 . . 20 1 9 50 15 6 . 8 . . . . . Smash 1 | . . . . . . . . . . 1 . . . . . . . . . . . . . . . Melee Attacks 20 | . . . . . . . . . . 5 . . . . 13 . . . . . . . 2 . . Kinetic 2 | . . . . . . . . . . . . . . . . . . . . . . . 2 . . Impact 5 | . . . . . . . . . . 5 . . . . . . . . . . . . . . . Slashing 7 | . . . . . . . . . . . . . . . 7 . . . . . . . . . . Piercing 6 | . . . . . . . . . . . . . . . 6 . . . . . . . . . . Sneak Attacks 1 | . . . . . . . . . . 1 . . . . . . . . . . . . . . . Combat Hostiles . | . . . . . . . . . . . . . . . . . . . . . . . . . . Follow-up Attacks . | . . . . . . . . . . . . . . . . . . . . . . . . . . Damage Inflicted 49201 | 75 1053 249 2413 568 3947 2588 1266 629 258 5210 426 536 4306 574 2688 3023 1660 704 28 2806 2954 1588 4808 2152 2692 Guns 20204 | 75 792 244 1110 342 2303 212 275 395 258 3220 426 322 2436 382 1358 2889 1660 704 27 774 . . . . . Cannons 15824 | . . . . . 1329 468 725 225 . . . . . 192 . . . . . 971 2421 1152 4785 2147 1409 Explosions 12457 | . 257 . 1303 226 315 1903 255 . . 1875 . 214 1870 . 1004 . . . . 1061 519 436 . . 1219 Melee 407 | . . . . . . . . . . 58 . . . . 326 . . . . . . . 23 . . Ramming 309 | . 4 5 . . . 5 11 9 . 57 . . . . . 134 . . 1 . 14 . . 5 64 Kinetic 15172 | . 641 244 1110 342 1518 212 275 145 106 1285 304 213 2436 382 748 2889 1402 387 27 483 . . 23 . . Thermal 24337 | 75 151 . . . 2190 2371 725 475 152 2666 122 109 . 192 610 . 258 317 . 1262 2421 1152 4498 2147 2444 Explosive 8136 | . 257 . 1303 226 102 . . . . 1144 . 214 1870 . 1004 . . . . 1061 519 436 . . . Electromagnetic 863 | . . . . . 137 . 255 . . . . . . . . . . . . . . . 287 . 184 Impact 58 | . . . . . . . . . . 58 . . . . . . . . . . . . . . . Slashing 282 | . . . . . . . . . . . . . . . 282 . . . . . . . . . . Piercing 44 | . . . . . . . . . . . . . . . 44 . . . . . . . . . . Highest Corruption 10 | . . . . . 2 1 1 1 . 10 4 4 4 4 4 4 7 7 1 . 7 4 8 8 . Average Corruption 3 | . . . . . 1 1 1 1 . 6 4 4 1 3 1 3 7 6 1 . 5 3 4 7 . Corruption Purged 31 | . . . . . . . . 1 . 7 . . . . . 4 . 7 . . . . 12 . . Corruption Blocked . | . . . . . . . . . . . . . . . . . . . . . . . . . . Effects 222 | . . . . . 21 3 3 4 . 29 17 30 4 7 6 2 7 3 . . 24 6 35 21 . Message Errors 41 | . . . . . 5 1 . 1 . 7 1 6 1 2 1 . 3 1 . . 3 . 5 4 . Matter Fused 64 | . . . . . 5 . 3 2 . 6 5 12 2 2 2 . 2 . . . 4 3 8 8 . Heat Flow Errors 24 | . . . . . 3 . . . . 3 3 2 . . . . . . . . 8 . 3 2 . Energy Discharges 30 | . . . . . 5 . . . . 4 2 5 . 2 . . 2 . . . 1 2 6 1 . Parts Rejected 3 | . . . . . . . . . . 1 . . . . 1 . . . . . . . 1 . . Parts Fused 1 | . . . . . . . . . . 1 . . . . . . . . . . . . . . . Data Loss (minor) 29 | . . . . . . 1 . 1 . 1 2 4 1 1 . . . 1 . . 4 1 8 4 . Data Loss (major) 6 | . . . . . 1 . . . . . 1 1 . . . 1 . . . . . . 2 . . Misfires 8 | . . . . . 1 1 . . . 1 2 . . . . . . . . . 2 . 1 . . Alerts 6 | . . . . . . . . . . 2 . . . . 2 1 . . . . . . 1 . . Weapon Failures 10 | . . . . . 1 . . . . 3 1 . . . . . . 1 . . 2 . . 2 . Overload Shots 14 | . . . . . . . . . . . . . 1 . . 1 1 . 6 5 . . . . . Overflow Damage 851 | . . . 27 . 10 30 . . . 139 . 21 . . 30 5 . . . 91 150 33 103 37 175 Projectiles 410 | . . . . . 10 . . . . . . . . . . . . . . 38 133 13 103 37 76 Explosions 408 | . . . 27 . . 30 . . . 139 . 21 . . 5 . . . . 53 14 20 . . 99 Melee 33 | . . . . . . . . . . . . . . . 25 5 . . . . 3 . . . . Knockbacks 7 | . . . . . . . . . . 2 . . . . . 3 . . . . . . . . 2 Impact 7 | . . . . . . . . . . 2 . . . . . 3 . . . . . . . . 2 Kinetic . | . . . . . . . . . . . . . . . . . . . . . . . . . . Secondary . | . . . . . . . . . . . . . . . . . . . . . . . . . . Self-Inflicted Damage 803 | . . . 74 67 . 226 5 . . . . . 50 . 32 . . . . . . . . . 349 Shots 16 | . . . 3 2 . 3 . . . . . . 3 . 1 . . . . . . . . . 4 Rammed 24 | . 1 2 . . . 1 1 1 . 5 . . . . . 2 . . 1 . 2 . . 1 7 Targets Rammed 30 | . 1 2 . . . 1 1 2 . 7 . . . . . 5 . . 1 . 2 . . 1 7 Kicked 3 | . . . . . . . . . . . . . . . . 3 . . . . . . . . . Crushed 3 | . . . . . . . . 1 . 2 . . . . . . . . . . . . . . . Highest Temperature 392 | 117 261 . 12 . 325 216 329 218 . 392 68 50 51 6 136 18 156 90 312 330 273 86 172 183 275 Average Temperature 83 | 53 87 . 4 . 77 75 100 83 . 147 29 28 16 4 57 6 18 40 128 102 102 86 51 35 65 Received Heat Transfer 4209 | . 117 . 153 60 624 93 252 48 . 261 . . 376 162 240 125 52 18 . 118 658 49 177 62 564 Effects 5 | . . . . . 2 . . . . 1 . . . . . . . . 2 . . . . . . Energy Bleed 2 | . . . . . 1 . . . . 1 . . . . . . . . . . . . . . . Interference 2 | . . . . . . . . . . . . . . . . . . . 2 . . . . . . Short Circuit 1 | . . . . . 1 . . . . . . . . . . . . . . . . . . . . Siege Activations 24 | . . . . . . . . . . . . . . . . . . . . 2 4 1 10 4 3 Total Turns 304 | . . . . . . . . . . . . . . . . . . . . 26 60 19 148 27 24 Longest Duration 61 | . . . . . . . . . . . . . . . . . . . . 19 28 19 61 14 12 Martial Activations . | . . . . . . . . . . . . . . . . . . . . . . . . . . Shielding Activations . | . . . . . . . . . . . . . . . . . . . . . . . . . . Robots Disrupted . | . . . . . . . . . . . . . . . . . . . . . . . . . . Combat Hostiles . | . . . . . . . . . . . . . . . . . . . . . . . . . . Robots Corrupted 1 | . . . . . . . . . . . . . . . . . . . . . 1 . . . . Combat Hostiles . | . . . . . . . . . . . . . . . . . . . . . . . . . . Parts Fried 6 | . . . . . . . . . . . . . . . . 1 . . . . . . 2 . 3 Impact Corruptions 2 | . . . . . . . . . . . . . . . . 1 . . . . 1 . . . . Robots Melted 10 | . . . . . . . 1 . . 1 . . . . . . . . . . 2 1 2 2 1 Combat Hostiles 10 | . . . . . . . 1 . . 1 . . . . . . . . . . 2 1 2 2 1 Parts Melted 78 | 1 1 . . . 7 2 2 1 . 15 . . 1 . 2 3 . . . 2 13 5 13 6 4 Heat Transferred 27589 | 222 518 . . . 4318 1866 1073 814 296 4224 333 185 . . 962 . 202 407 . 1267 2109 962 4070 1887 1874 Parts Sabotaged 1 | . . . . . . . . . . . . . . . . 1 . . . . . . . . . Parts Stolen . | . . . . . . . . . . . . . . . . . . . . . . . . . . Parts Stripped 18 | . . . . . . . . . . . . . . . . . . . . . . . 18 . . Power Chain Reactions 1 | . . . . . 1 . . . . . . . . . . . . . . . . . . . . Alert | -11 -10 -10 -9 -9 -8 -7 -7 -7 -7 -5 -5 -5 -5 -4 -4 -4 -4 -4 -4 -3 -3 -2 -2 -2 -1 ------- Run | Yrd Mat Min Mat Min Mat Fac Sto Rec Scr Fac Upp Upp War Pro Fac Ext Cet Arc Hub Res Tes Res Qua Sec Acc Maximum Alert Level 4 | . . . 2 . 1 1 1 . . 4 . . . . 2 4 3 2 2 2 2 2 2 2 2 Low Security (%) 50 | 100 100 100 42 100 53 52 89 100 . 18 . . . . 76 46 . . 24 75 4 28 44 . 5 Level 1 28 | . . . 33 . 46 47 10 . . 37 . . . . 19 17 . 5 74 6 70 70 26 48 67 Level 2 12 | . . . 23 . . . . . . 3 . . . . 4 13 . 94 . 18 24 . 29 51 27 Level 3 4 | . . . . . . . . . . 8 . . . . . 15 100 . . . . . . . . Level 4 3 | . . . . . . . . . . 31 . . . . . 5 . . . . . . . . . Level 5 . | . . . . . . . . . . . . . . . . . . . . . . . . . . High Security . | . . . . . . . . . . . . . . . . . . . . . . . . . . Max Security . | . . . . . . . . . . . . . . . . . . . . . . . . . . Peak Influence 1548 | 15 124 98 457 161 398 347 212 146 . 1289 . . . . 419 1548 971 528 402 461 473 410 600 494 654 Initial 865 | . 3 28 . 161 . 173 126 75 . . . . . . . 178 865 346 145 171 245 262 67 310 296 Average 264 | 2 53 19 236 51 189 191 122 82 . 579 . . . . 109 373 908 469 274 197 317 284 271 385 321 Influence Increases 16211 | 20 512 246 888 173 1156 516 367 400 25 2156 . 136 568 60 684 2225 348 230 361 941 726 493 1094 768 1118 Destroy 0b10 Robot/C 7440 | . 240 180 460 80 740 240 180 80 . 980 . 100 360 40 360 900 160 80 100 400 320 220 520 320 380 Destroy 0b10 Robot/NC 795 | 20 55 10 85 15 70 30 15 40 25 140 . 15 5 . 55 105 10 15 10 15 15 . 20 10 15 Destroy Leader 1350 | . 64 30 114 20 214 64 40 . . 186 . 10 . 20 70 116 . . 30 92 42 30 82 54 72 Allied During Kill 1571 | . . 26 14 . . . 3 . . 178 . 11 8 . . 929 147 80 98 77 . . . . . Successful Hack 677 | . 20 . 39 . 8 28 34 4 . . . . . . 8 27 7 . 11 150 76 12 108 29 116 Select Force Hacks 410 | . 60 . . . 30 . . 270 . . . . . . . . . . 50 . . . . . . Disable Machine 1125 | . . . 60 . 30 105 75 . . 195 . . . . 45 30 . 45 30 75 165 15 105 90 60 Anti-Garrison Action 150 | . . . . . . . . . . 150 . . . . . . . . . . . . . . . Destroy Structure 1823 | . 28 . 101 43 49 49 20 6 . 312 . . . . 146 58 24 10 32 132 108 201 129 105 270 Partial Spotted 45 | . . . . . . . . . . . . . . . . . . . . . . . 30 15 . Lose Combat Pursuer 525 | . 45 . 15 15 15 . . . . 15 . . 195 . . 60 . . . . . 15 . 45 105 Miscellaneous 300 | . . . . . . . . . . . . . . . . . . . . . . . 100 100 100 Influence Decreases 15653 | 15 444 319 474 587 774 619 453 582 36 873 793 564 345 345 319 1044 1027 681 451 830 696 839 662 827 1054 Entered New Map 4414 | . 2 45 . 253 . 209 153 118 11 . 475 94 62 285 . 187 681 521 271 155 192 205 54 243 198 Time Decay 8752 | 15 442 235 404 324 614 410 230 464 25 453 318 470 105 60 259 557 286 160 100 595 474 334 568 434 416 Lost Part 640 | . . . 10 10 10 . 20 . . 110 . . 140 . 60 . . . 20 . 30 . 40 . 190 Lost Ally 947 | . . 39 60 . . . 50 . . 160 . . 38 . . 300 60 . 60 80 . . . . 100 Purge Threat 900 | . . . . . 150 . . . . 150 . . . . . . . . . . . 300 . 150 150 Squads Dispatched 88 | . 5 . 2 . 7 5 9 . . 13 . . . . 3 4 . . 6 3 5 2 10 7 7 Investigation 25 | . 2 . . . 3 . 3 . . 3 . . . . . 1 . . 4 2 . . 2 1 4 Extermination 24 | . . . . . . 3 1 . . 3 . . . . 2 . . . . . 3 2 5 3 2 Reinforcement 25 | . 3 . 2 . 4 . 2 . . 2 . . . . 1 1 . . 2 1 1 . 3 2 1 Assault 13 | . . . . . . 2 2 . . 5 . . . . . 2 . . . . 1 . . 1 . Garrison 1 | . . . . . . . 1 . . . . . . . . . . . . . . . . . . Intercept . | . . . . . . . . . . . . . . . . . . . . . . . . . . Searches Triggered . | . . . . . . . . . . . . . . . . . . . . . . . . . . Construction Impeded 7 | . . . 1 . 2 . 1 . . 2 . . . . . 1 . . . . . . . . . Haulers Reinforced 1 | . . . . . . . 1 . . . . . . . . . . . . . . . . . . Active Scanning Responses . | . . . . . . . . . . . . . . . . . . . . . . . . . . Cargo Convoy Interrupts . | . . . . . . . . . . . . . . . . . . . . . . . . . . Stealth | -11 -10 -10 -9 -9 -8 -7 -7 -7 -7 -5 -5 -5 -5 -4 -4 -4 -4 -4 -4 -3 -3 -2 -2 -2 -1 --------- Run | Yrd Mat Min Mat Min Mat Fac Sto Rec Scr Fac Upp Upp War Pro Fac Ext Cet Arc Hub Res Tes Res Qua Sec Acc Distress Signals 47 | . 3 . 1 . 5 . 2 . . 4 . . 3 . 1 5 2 . . 14 . . . 3 4 Communications Jammed 135 | . . . . . . . . . . 28 . . 27 . . . . . . . 6 1 1 35 37 Distress Signals 120 | . . . . . . . . . . 14 . . 27 . . . . . . . 6 . 1 35 37 Times Spotted 669 | . 20 9 31 5 51 21 15 3 . 51 . 5 111 3 33 51 9 7 12 26 22 13 34 43 94 Peak Tracking Total 26 | . 3 3 5 2 4 8 5 1 . 7 . 5 26 2 8 8 5 2 5 6 4 4 4 7 10 Tactical Retreats 19 | . 3 . 1 1 1 . . . . 1 . . 4 . . 3 . . . . . 1 . 1 3 Traps | -11 -10 -10 -9 -9 -8 -7 -7 -7 -7 -5 -5 -5 -5 -4 -4 -4 -4 -4 -4 -3 -3 -2 -2 -2 -1 ------- Run | Yrd Mat Min Mat Min Mat Fac Sto Rec Scr Fac Upp Upp War Pro Fac Ext Cet Arc Hub Res Tes Res Qua Sec Acc Traps Triggered 16 | . . . 2 . 3 1 1 . . 1 . . . . . . . . 1 3 2 . . . 2 Indirectly . | . . . . . . . . . . . . . . . . . . . . . . . . . . Trap Hack Attempts . | . . . . . . . . . . . . . . . . . . . . . . . . . . Triggered . | . . . . . . . . . . . . . . . . . . . . . . . . . . Disarmed . | . . . . . . . . . . . . . . . . . . . . . . . . . . Reprogrammed . | . . . . . . . . . . . . . . . . . . . . . . . . . . Reused . | . . . . . . . . . . . . . . . . . . . . . . . . . . Traps Extracted . | . . . . . . . . . . . . . . . . . . . . . . . . . . Installed . | . . . . . . . . . . . . . . . . . . . . . . . . . . Triggered . | . . . . . . . . . . . . . . . . . . . . . . . . . . Machines | -11 -10 -10 -9 -9 -8 -7 -7 -7 -7 -5 -5 -5 -5 -4 -4 -4 -4 -4 -4 -3 -3 -2 -2 -2 -1 ---------- Run | Yrd Mat Min Mat Min Mat Fac Sto Rec Scr Fac Upp Upp War Pro Fac Ext Cet Arc Hub Res Tes Res Qua Sec Acc Machines Disabled 84 | . . . 4 . 2 7 5 . . 14 . . 1 . 3 6 . 3 2 5 12 2 8 6 4 Max in Single Turn 6 | . . . 1 . 1 4 1 . . 6 . . 1 . 2 1 . 1 . 2 1 1 1 1 1 Garrison Access 6 | . . . . . . 1 . . . 1 . . . . . . . . 1 . 1 . . . 2 Network Hub 2 | . . . . . . . . . . . . . . . . . . . 2 . . . . . . Machines Repaired . | . . . . . . . . . . . . . . . . . . . . . . . . . . Machines Dismantled . | . . . . . . . . . . . . . . . . . . . . . . . . . . Machines Sabotaged 1 | . . . . . . . . . . . . . . . . . . . 1 . . . . . . Overloaded Fab Kills . | . . . . . . . . . . . . . . . . . . . . . . . . . . Hacking | -11 -10 -10 -9 -9 -8 -7 -7 -7 -7 -5 -5 -5 -5 -4 -4 -4 -4 -4 -4 -3 -3 -2 -2 -2 -1 --------- Run | Yrd Mat Min Mat Min Mat Fac Sto Rec Scr Fac Upp Upp War Pro Fac Ext Cet Arc Hub Res Tes Res Qua Sec Acc Machines Accessed 131 | . 7 . 6 . 9 5 6 15 2 9 . . 2 . 4 13 1 . 6 9 9 6 8 4 10 Terminals 78 | . 5 . 5 . 4 3 5 6 . 1 . . . . 2 12 1 . 5 4 7 4 5 3 6 Fabricators 5 | . . . . . . 2 . . . 1 . . . . 1 . . . . . . 1 . . . Repair Stations 10 | . . . . . 2 . . . . 2 . . . . 1 . . . . 2 . . 2 1 . Recycling Units 19 | . 2 . . . 1 . . 9 . 3 . . . . . 1 . . . 2 . . . . 1 Scanalyzers 7 | . . . 1 . 2 . . . . 1 . . . . . . . . . 1 1 . 1 . . Garrison Access 8 | . . . . . . . 1 . . 1 . . . . . . . . 1 . 1 1 . . 3 Total Hacks 421 | . 23 . 18 . 28 18 17 22 4 20 . . 6 . 10 33 1 . 14 46 49 30 33 17 32 Successful 200 | . 11 . 7 . 18 12 10 12 4 7 . . 6 . 4 16 1 . 7 23 14 8 16 10 14 Failed 217 | . 11 . 11 . 9 6 7 10 . 13 . . . . 6 17 . . 7 22 34 22 17 7 18 Catastrophic 32 | . . . 2 . 1 . 3 4 . 2 . . . . 1 . . . 2 1 4 6 1 . 5 Database Lockouts 4 | . 1 . . . 1 . . . . . . . . . . . . . . 1 1 . . . . Manual 208 | . 18 . 14 . 16 8 10 21 . 6 . . . . 3 10 1 . 12 17 28 17 14 2 11 Terminals 300 | . 21 . 14 . 14 12 15 10 . 4 . . . . 4 30 1 . 12 34 44 24 22 14 25 Fabricators 13 | . . . . . . 6 . . . 2 . . . . 2 . . . . . . 3 . . . Repair Stations 28 | . . . . . 4 . . . . 3 . . . . 4 . . . . 6 . . 8 3 . Recycling Units 28 | . 2 . . . 1 . . 12 . 5 . . . . . 3 . . . 4 . . . . 1 Scanalyzers 25 | . . . 4 . 9 . . . . 3 . . . . . . . . . 2 4 . 3 . . Garrison Access 17 | . . . . . . . 2 . . 3 . . . . . . . . 2 . 1 3 . . 6 Terminal Hacks 90 | . 3 . 2 . 3 5 5 1 4 2 . . 6 . 2 13 1 . 1 13 6 4 6 6 7 Record 4 | . . . . . . . . . 4 . . . . . . . . . . . . . . . . Part Schematic 2 | . . . 1 . . . . . . . . . . . . 1 . . . . . . . . . Prototype ID Bank 15 | . 2 . . . . . 2 1 . . . . 5 . . 2 . . . 2 . . . 1 . Open Door 15 | . . . . . . . 3 . . . . . 1 . . 8 1 . . . . . 1 . 1 Level Access Points 4 | . . . . . . . . . . . . . . . . . . . 1 1 1 . . . 1 Branch Access Points 10 | . . . 1 . 1 1 . . . 1 . . . . 1 1 . . . 2 . 1 . . 1 Emergency Access Points 1 | . . . . . . . . . . . . . . . . . . . . 1 . . . . . Machine Index 1 | . . . . . . . . . . . . . . . . . . . . . 1 . . . . Terminal Index 2 | . . . . . . . . . . . . . . . . . . . . 1 . . . . 1 Alert Level 7 | . . . . . 1 . . . . . . . . . 1 . . . . 1 . 1 2 1 . Unreport Threat 9 | . . . . . 1 . . . . 1 . . . . . . . . . . . 2 1 2 2 Locate Traps 4 | . 1 . . . . 1 . . . . . . . . . . . . . 1 1 . . . . Security Status 1 | . . . . . . . . . . . . . . . . . . . . 1 . . . . . Recall Reinforcements 3 | . . . . . . . . . . . . . . . . . . . . 1 . . 1 1 . Recall Assault 1 | . . . . . . . . . . . . . . . . . . . . . 1 . . . . Hauler Manifests 1 | . . . . . . 1 . . . . . . . . . . . . . . . . . . . Registered Components 6 | . . . . . . 1 . . . . . . . . . . . . . 1 1 . 1 1 1 Zone Layout 4 | . . . . . . 1 . . . . . . . . . 1 . . . 1 1 . . . . Fabricator Hacks 5 | . . . . . . 2 . . . 1 . . . . 1 . . . . . . 1 . . . Network Status 4 | . . . . . . 1 . . . 1 . . . . 1 . . . . . . 1 . . . Build 1 | . . . . . . 1 . . . . . . . . . . . . . . . . . . . Repair Station Hacks 14 | . . . . . 2 . . . . . . . . . 1 . . . . 5 . . 4 2 . Scan Component 9 | . . . . . 1 . . . . . . . . . 1 . . . . 3 . . 3 1 . Repair 5 | . . . . . 1 . . . . . . . . . . . . . . 2 . . 1 1 . Recycling Unit Hacks . | . . . . . . . . . . . . . . . . . . . . . . . . . . Scanalyzer 14 | . . . 1 . 8 . . . . . . . . . . . . . . . 3 . 2 . . Insert Component 1 | . . . . . 1 . . . . . . . . . . . . . . . . . . . . Analyze 1 | . . . . . 1 . . . . . . . . . . . . . . . . . . . . Retrieve Study 12 | . . . 1 . 6 . . . . . . . . . . . . . . . 3 . 2 . . Garrison Access Hacks 4 | . . . . . . . . . . . . . . . . . . . 1 . 1 . . . 2 Seal Access 4 | . . . . . . . . . . . . . . . . . . . 1 . 1 . . . 2 Unauthorized Hacks 73 | . 8 . 4 . 5 5 5 11 . 4 . . . . . 3 . . 5 5 4 3 4 2 5 Terminals 47 | . 6 . 4 . 3 2 5 2 . . . . . . . 2 . . 5 3 4 1 4 2 4 Assimilate 4 | . . . . . . . . . . . . . . . . . . . . . 1 . 1 . 2 Botnet 25 | . 1 . 2 . 2 2 2 . . . . . . . . 1 . . 2 2 3 1 3 2 2 Operators 3 | . . . . . . . 1 . . . . . . . . 1 . . . 1 . . . . . Skim 12 | . 5 . 2 . 1 . 2 2 . . . . . . . . . . . . . . . . . Sabotage 3 | . . . . . . . . . . . . . . . . . . . 3 . . . . . . Fabricators 6 | . . . . . . 3 . . . 1 . . . . . . . . . . . 2 . . . Report 1 | . . . . . . . . . . . . . . . . . . . . . . 1 . . . Liberate 4 | . . . . . . 2 . . . 1 . . . . . . . . . . . 1 . . . Haulers 1 | . . . . . . 1 . . . . . . . . . . . . . . . . . . . Repair Stations 1 | . . . . . 1 . . . . . . . . . . . . . . . . . . . . Mechanics 1 | . . . . . 1 . . . . . . . . . . . . . . . . . . . . Recycling Units 19 | . 2 . . . 1 . . 9 . 3 . . . . . 1 . . . 2 . . . . 1 Tunnel 12 | . 2 . . . 1 . . 9 . . . . . . . . . . . . . . . . . Fedlink 2 | . . . . . . . . . . 1 . . . . . . . . . 1 . . . . . Scrapoids 5 | . . . . . . . . . . 2 . . . . . 1 . . . 1 . . . . 1 Scanalyzers . | . . . . . . . . . . . . . . . . . . . . . . . . . . Garrison Access . | . . . . . . . . . . . . . . . . . . . . . . . . . . Data Cores Recovered 1 | . . . . . . . . . . . . . . . . . . . . . 1 . . . . Used 1 | . . . . . . . . . . . . . . . . . . . . . 1 . . . . Hacking Detections 91 | . 5 . 6 . 7 5 5 7 . 7 . . . . 4 9 . . 3 7 7 5 4 4 6 Full Trace Events 5 | . . . 1 . 1 . 2 . . . . . . . . . . . 1 . . . . . . Feedback Events . | . . . . . . . . . . . . . . . . . . . . . . . . . . Feedback Blocked . | . . . . . . . . . . . . . . . . . . . . . . . . . . Robot Schematics Acquired . | . . . . . . . . . . . . . . . . . . . . . . . . . . Robots Built 1 | . . . . . . 1 . . . . . . . . . . . . . . . . . . . Authchips . | . . . . . . . . . . . . . . . . . . . . . . . . . . Time 116 | . . . . . . 116 . . . . . . . . . . . . . . . . . . . Total Robot Build Rating 3 | . . . . . . 3 . . . . . . . . . . . . . . . . . . . Part Schematics Acquired 3 | . . . 1 . 1 . . . . . . . . . . 1 . . . . . . . . . Parts Built . | . . . . . . . . . . . . . . . . . . . . . . . . . . Authchips . | . . . . . . . . . . . . . . . . . . . . . . . . . . Time . | . . . . . . . . . . . . . . . . . . . . . . . . . . Total Part Build Rating . | . . . . . . . . . . . . . . . . . . . . . . . . . . Part Studies Acquired 12 | . . . 1 . 6 . . . . . . . . . . . . . . . 3 . 2 . . Parts Repaired 5 | . . . . . 1 . . . . . . . . . . . . . . 2 . . 1 1 . Time 199 | . . . . . 38 . . . . . . . . . . . . . . 62 . . 68 31 . Parts Recycled . | . . . . . . . . . . . . . . . . . . . . . . . . . . Recycled Matter . | . . . . . . . . . . . . . . . . . . . . . . . . . . Retrieved Matter . | . . . . . . . . . . . . . . . . . . . . . . . . . . Retrieved Components . | . . . . . . . . . . . . . . . . . . . . . . . . . . Parts Scanalyzed 1 | . . . . . 1 . . . . . . . . . . . . . . . . . . . . Part Schematics Acquired 1 | . . . . . 1 . . . . . . . . . . . . . . . . . . . . Parts Damaged 1 | . . . . . 1 . . . . . . . . . . . . . . . . . . . . Bothacking | -11 -10 -10 -9 -9 -8 -7 -7 -7 -7 -5 -5 -5 -5 -4 -4 -4 -4 -4 -4 -3 -3 -2 -2 -2 -1 ------------ Run | Yrd Mat Min Mat Min Mat Fac Sto Rec Scr Fac Upp Upp War Pro Fac Ext Cet Arc Hub Res Tes Res Qua Sec Acc Used RIF Installer . | . . . . . . . . . . . . . . . . . . . . . . . . . . Robots Hacked . | . . . . . . . . . . . . . . . . . . . . . . . . . . Non-combat . | . . . . . . . . . . . . . . . . . . . . . . . . . . Combat . | . . . . . . . . . . . . . . . . . . . . . . . . . . Robot Hacks Applied . | . . . . . . . . . . . . . . . . . . . . . . . . . . Relay Couplers Released 5 | . . . . . . 2 . . . 3 . . . . . . . . . . . . . . . Machine Destruction 5 | . . . . . . 2 . . . 3 . . . . . . . . . . . . . . . Fabnet Peak Effective % . | . . . . . . . . . . . . . . . . . . . . . . . . . . Robots Rewired 15 | . . . . . . . . . . . . . 4 . . 11 . . . . . . . . . Allies Hacked 1 | . . . . . . . . . . . . . . . . 1 . . . . . . . . . Hacks Repelled . | . . . . . . . . . . . . . . . . . . . . . . . . . . Allies | -11 -10 -10 -9 -9 -8 -7 -7 -7 -7 -5 -5 -5 -5 -4 -4 -4 -4 -4 -4 -3 -3 -2 -2 -2 -1 -------- Run | Yrd Mat Min Mat Min Mat Fac Sto Rec Scr Fac Upp Upp War Pro Fac Ext Cet Arc Hub Res Tes Res Qua Sec Acc Total Allies 73 | . . 5 . 1 . 1 2 . 5 10 . . 4 . . 28 5 . . 5 . . . . 7 Largest Group 16 | . . 5 3 1 . 1 3 . 5 5 1 1 5 . . 16 11 6 5 5 . . . . 5 Highest-Rated Group 846 | . . 90 66 31 . 26 88 . 238 241 47 47 255 . . 846 844 350 313 323 . . . . 320 Highest-Rated Ally 159 | . . 31 31 31 . 26 31 . 50 50 47 47 64 . . 159 153 96 96 67 . . . . 64 Initial UFD Resources 58 | . . . . . . . . . . 37 41 41 41 45 45 45 42 42 42 44 51 54 54 54 58 Total Orders 4 | . . . . . . . . . . . . . . . . . 4 . . . . . . . . STAY 2 | . . . . . . . . . . . . . . . . . 2 . . . . . . . . FOLLOW 2 | . . . . . . . . . . . . . . . . . 2 . . . . . . . . Ally Attacks 667 | . . 19 15 . . . 14 . . 151 . 2 13 . . 232 38 20 39 68 . . . . 56 Total Damage 17022 | . . 166 223 . . . 253 . . 3935 . 62 365 . . 5978 1197 662 1194 1374 . . . . 1613 Kills 112 | . . 6 4 . . . 1 . . 31 . 2 1 . . 36 8 3 6 9 . . . . 5 Allies Corrupted 6 | . . . . . . . . . . 1 . . . . . 3 . . 2 . . . . . . Allies Melted 4 | . . . . . . . . . . . . . 1 . . 3 . . . . . . . . . Intel | -11 -10 -10 -9 -9 -8 -7 -7 -7 -7 -5 -5 -5 -5 -4 -4 -4 -4 -4 -4 -3 -3 -2 -2 -2 -1 ------- Run | Yrd Mat Min Mat Min Mat Fac Sto Rec Scr Fac Upp Upp War Pro Fac Ext Cet Arc Hub Res Tes Res Qua Sec Acc Active Infowar (turns) 25737 | 24 1327 1028 1114 766 962 986 480 1170 2775 1222 704 1163 1629 533 648 1150 79 118 212 1890 1215 747 1706 1077 1012 Optics 2 | . . . . . . . . . . . . . . . . . . . . 2 . . . . . Sensors 13046 | . . . . . . 813 377 1074 1599 909 704 1163 1503 414 480 1150 79 118 31 . 223 658 1089 . 662 Terrain 2123 | . . . . . . . . . . . . . . . 77 . . . 210 1660 176 . . . . Structural 5 | . . . . . . . . . . . . . . . 5 . . . . . . . . . . Seismic 5221 | 24 1327 1028 1114 766 962 . . . . . . . . . . . . . . . . . . . . Machine Analysis 13844 | . . . . . . 985 480 1170 2775 792 . . . . . . . . . 1885 1215 747 1706 1077 1012 Cloaking 2 | . . . . . . . . . . . . . 2 . . . . . . . . . . . . Jamming 7338 | . . . . . . . . . . 1099 . . 264 531 564 . . . . . 707 745 1665 1074 689 Robot Analysis Total . | . . . . . . . . . . . . . . . . . . . . . . . . . . Derelict Logs Recovered 4 | . . 1 . 2 . . . . . . 1 . . . . . . . . . . . . . . Drone Launches . | . . . . . . . . . . . . . . . . . . . . . . . . . . Drone Recoveries . | . . . . . . . . . . . . . . . . . . . . . . . . . . Exploration | -11 -10 -10 -9 -9 -8 -7 -7 -7 -7 -5 -5 -5 -5 -4 -4 -4 -4 -4 -4 -3 -3 -2 -2 -2 -1 ------------- Run | Yrd Mat Min Mat Min Mat Fac Sto Rec Scr Fac Upp Upp War Pro Fac Ext Cet Arc Hub Res Tes Res Qua Sec Acc Turns Passed 30368 | 104 1327 1028 1118 766 2348 988 480 1170 2775 1832 704 1199 1977 533 1003 2198 622 337 212 1890 1215 747 1706 1077 1012 Spaces Moved 15567 | 51 668 594 521 437 1047 517 206 655 1577 884 407 706 991 220 465 1167 259 131 112 939 571 316 669 633 824 Core 3 | 3 . . . . . . . . . . . . . . . . . . . . . . . . . Treads 13936 | 48 668 594 521 437 1047 428 18 654 1577 884 407 706 991 211 66 668 259 131 112 939 571 316 669 513 501 Legs 557 | . . . . . . . . . . . . . . 9 49 499 . . . . . . . . . Wheels 628 | . . . . . . 89 188 1 . . . . . . 350 . . . . . . . . . . Hover . | . . . . . . . . . . . . . . . . . . . . . . . . . . Flight . | . . . . . . . . . . . . . . . . . . . . . . . . . . Fastest Speed 50 | 50 160 160 160 160 160 130 130 130 161 155 165 165 160 160 100 120 163 163 163 158 155 155 150 150 151 Average Speed 160 | 153 160 160 160 160 168 163 136 160 161 161 165 165 168 221 142 143 164 163 163 162 159 155 159 154 157 Slowest Speed 330 | 160 160 160 240 160 170 170 210 161 161 243 165 165 232 260 330 240 165 163 163 166 165 160 237 158 166 Overloaded Moves . | . . . . . . . . . . . . . . . . . . . . . . . . . . Propulsion Burnouts . | . . . . . . . . . . . . . . . . . . . . . . . . . . Robots Hopped . | . . . . . . . . . . . . . . . . . . . . . . . . . . Potential Cave-ins 11 | . . . . . . . . . . 3 . . 2 . . . . . 2 2 . . . 2 . Cave-ins Triggered . | . . . . . . . . . . . . . . . . . . . . . . . . . . Teleports 42 | . . . . . . . . . . . . . . . . . . . . . . . . 17 25 Microwarps 29 | . . . . . . . . . . . . . . . . . . . . . . . . 7 22 Exploration Rate (%) 55 | 4 97 99 52 98 69 13 37 99 85 22 45 78 89 42 14 84 72 83 19 35 61 9 73 30 24 Regions Visited 25 Branch Regions 16 Pre-discovered Areas 13 | . 2 . . . 1 . . 9 . . . . . . . . . . . 1 . . . . . Known Exits Taken 18 | . . 1 1 . . 1 1 1 1 1 1 1 . 1 1 1 . . 1 1 1 1 1 1 . Unknown Exits Taken 7 | 1 1 . . 1 1 . . . . . . . 1 . . . 1 1 . . . . . . . Scrap Searched 19 | . . 1 . 2 . . . . 8 . 3 3 . 2 . . . . . . . . . . . Spaces Dug 284 | . 7 . 12 26 12 45 1 . . 15 . 8 . . 19 . 9 . 4 10 13 16 28 22 37 Terrain Destroyed 1194 | . 30 . 102 50 39 105 17 8 . 112 23 21 74 3 87 18 31 7 7 62 119 97 49 47 86 Melee 9 | . . . . . . . . . . 4 . . . . 5 . . . . . . . . . . Projectile 423 | . . . . . 21 . 17 8 . 33 23 13 43 3 . 18 31 7 7 26 32 25 49 47 20 AOE 761 | . 30 . 102 50 18 105 . . . 74 . 8 31 . 82 . . . . 36 87 72 . . 66 Terrain Rammed . | . . . . . . . . . . . . . . . . . . . . . . . . . . Walls Destroyed . | . . . . . . . . . . . . . . . . . . . . . . . . . . Machines Disabled . | . . . . . . . . . . . . . . . . . . . . . . . . . . Actions | -11 -10 -10 -9 -9 -8 -7 -7 -7 -7 -5 -5 -5 -5 -4 -4 -4 -4 -4 -4 -3 -3 -2 -2 -2 -1 --------- Run | Yrd Mat Min Mat Min Mat Fac Sto Rec Scr Fac Upp Upp War Pro Fac Ext Cet Arc Hub Res Tes Res Qua Sec Acc Total 19876 | 65 832 647 686 465 1444 613 338 736 1807 1143 429 732 1225 242 708 1535 400 226 130 1265 861 562 1296 780 709 Wait 1923 | . 74 39 28 1 144 39 74 41 180 45 12 3 36 2 108 106 68 66 7 128 101 152 314 78 77 Move 15127 | 50 667 593 520 436 1046 516 205 654 1576 883 406 705 990 219 464 1166 258 130 111 938 570 315 668 519 522 Hop . | . . . . . . . . . . . . . . . . . . . . . . . . . . Pick Up 289 | 4 18 1 17 2 36 4 3 4 11 27 . 2 6 2 16 29 7 3 1 34 11 6 20 16 9 Fast Attach 210 | 7 1 . 7 . 10 1 4 3 4 12 . 2 18 1 20 12 13 4 . 24 21 2 22 10 12 Attach 117 | . . . 3 1 5 2 4 1 . 16 . . 15 2 8 7 1 . 1 3 6 3 14 5 20 Detach 53 | . . . 1 . 1 . 2 1 . 2 . . 11 3 2 2 . 2 . 5 5 . 7 4 5 Swap 313 | . 12 . 20 4 31 17 5 8 8 44 1 6 7 1 19 30 3 2 1 26 11 15 27 10 5 Drop 413 | . 10 . 21 . 59 8 8 7 20 24 1 6 16 1 17 44 22 5 . 39 25 7 38 24 11 Fire 1257 | 4 49 12 69 21 112 25 32 15 8 78 9 8 62 11 41 74 28 14 8 68 109 62 184 113 41 Melee 20 | . . . . . . . . . . 5 . . . . 13 . . . . . . . 2 . . Ram 1 | . . . . . . . 1 . . . . . . . . . . . . . . . . . . Kick 3 | . . . . . . . . . . . . . . . . 3 . . . . . . . . . Crush 26 | . 1 2 . . . 1 . 2 . 7 . . . . . 2 . . 1 . 2 . . 1 7 Escape Stasis . | . . . . . . . . . . . . . . . . . . . . . . . . . . Rewire 124 | . . . . . . . . . . . . . 64 . . 60 . . . . . . . . . Trap . | . . . . . . . . . . . . . . . . . . . . . . . . . . Miscellaneous . | . . . . . . . . . . . . . . . . . . . . . . . . . . Route ------- -11/Scrapyard -10/Materials (discovered 5 exits: *Mat x3 / [*Min] / *Sub) -10/Mines (discovered 4 exits: *Mat x2 / *Exi / *Sub) -9/Materials (discovered 2 exits: *Min x2) -9/Mines (discovered 2 exits: *Mat x2) -8/Materials (discovered 2 exits: *Fac x2) -7/Factory (discovered 4 exits: *Sto x2 / Low x2) -7/Storage (discovered 2 exits: Fac / *Rec) -7/Recycling (discovered 2 exits: *Fac / *Scr) -7/Scraptown (discovered 2 exits: *Fac x2) -5/Factory (discovered 2 exits: *Upp x2) -5/Upper Caves -5/Upper Caves (discovered 2 exits: *Fac / *War) -5/Warlord -4/Proximity Caves -4/Factory (discovered 5 exits: Upp x2 / *Ext x2 / Arm) -4/Extension (discovered 2 exits: *Res / *Cet) -4/Cetus (discovered 2 exits: *Res / [*Arc]) -4/Archives (discovered 3 exits: *Res / *Hub x2) -4/Hub_04(d) (discovered 4 exits: *Res x4) -3/Research (discovered 5 exits: *Res x3 / *Tes x2) -3/Testing -2/Research (discovered 2 exits: *Qua x2) -2/Quarantine (discovered 3 exits: *Acc / *Sec / *Frg) -2/Section 7 -1/Access (discovered 2 exits: *Sur / Com) To Fleet Rendezvous History --------- Turn | Location | Event 26 | -11/Scrapyard | Discovered new exit (range 15) 105 | -11/Scrapyard | Entered Materials 276 | -10/Materials | Discovered new exit (range 6) 315 | -10/Materials | Build established: Mutant 838 | -10/Materials | Discovered new exit (range 5) 969 | -10/Materials | Discovered new exit (range 8) 1102 | -10/Materials | Discovered new exit (range 9) 1105 | -10/Materials | Derelicts attacked the area 1142 | -10/Materials | Central database locked down 1216 | -10/Materials | Loaded intel: 8 terminal locations 1323 | -10/Materials | Learned location of 2 exits from Subcaves 1340 | -10/Materials | Identified exit to Materials 1347 | -10/Materials | Learned location of 2 exits from Mines 1365 | -10/Materials | Learned location of 1 exit from Storage 1394 | -10/Materials | Learned Storage stockpile data 1432 | -10/Materials | Entered Mines 1433 | -10/Mines | Identified exit to Subcaves 1434 | -10/Mines | Identified exit to Exiles 1528 | -10/Mines | Learned Materials garrison access intel 1584 | -10/Mines | Discovered exit to Materials (range 10) 1672 | -10/Mines | Found a hidden stash of uninstalled traps 1975 | -10/Mines | Assisted by bots powering up and referring to "LRC-V3" 2290 | -10/Mines | Deemed a non-threat by the Exiles lab entrance 2460 | -10/Mines | Entered Materials 2460 | -9/Materials | Accompanied by 3 allies 2460 | -9/Materials | Evolved 2 slots: Propulsion x1, Utility x1 2465 | -9/Materials | Led the pair of lost Derelicts to an unsafe place 2626 | -9/Materials | Lost 3 allies 2712 | -9/Materials | Discovered new exit (range 6) 2923 | -9/Materials | Identified exit to Mines 2958 | -9/Materials | Build established: Scavenger-Mutant 3578 | -9/Materials | Entered Mines 3581 | -9/Mines | Received a Mining Laser from a helpful Derelict 3690 | -9/Mines | Learned Materials stockpile data 4040 | -9/Mines | Discovered new exit (range 11) 4147 | -9/Mines | Discovered new exit (range 3) 4344 | -9/Mines | Entered Materials 4344 | -8/Materials | Evolved 2 slots: Propulsion x1, Weapon x1 4346 | -8/Materials | Loaded intel: 1 garrison access location 4776 | -8/Materials | Discovered new exit (range 16) 4916 | -8/Materials | Build established: Tank 5781 | -8/Materials | Central database locked down 5859 | -8/Materials | Discovered new exit (range 8) 5903 | -8/Materials | Repaired Arm. Treads+ 6692 | -8/Materials | Entered Factory 6692 | -7/Factory | Evolved 2 slots: Utility x2 6693 | -7/Factory | Identified exit to Storage 6991 | -7/Factory | Build established: Skirmisher 7230 | -7/Factory | Destroyed 8 combat bots 7392 | -7/Factory | Identified exit to Lower Caves 7624 | -7/Factory | Fabricated O-24 Administrator? 7680 | -7/Factory | Entered Storage 7680 | -7/Storage | Accompanied by 1 ally 7681 | -7/Storage | Identified exit to Recycling 7682 | -7/Storage | Identified exit to Factory 7789 | -7/Storage | Met a pair of Derelict thieves 7982 | -7/Storage | Garrison activated, responded to threat 8069 | -7/Storage | Found Prototype Launcher 8069 | -7/Storage | Identified Gui. EMP Blaster 8160 | -7/Storage | Entered Recycling 8927 | -7/Recycling | Discovered new exit (range 8) 9289 | -7/Recycling | Scanned before Scraplab entrance 9313 | -7/Recycling | Entered Scraplab 9326 | -7/Recycling | Discovered new exit (range 3) 9328 | -7/Recycling | Identified exit to Scraptown 9330 | -7/Recycling | Entered Scraptown 9795 | -7/Scraptown | Discovered new exit (range 13) 9856 | -7/Scraptown | Visited Bundlers 9963 | -7/Scraptown | Visited Junk Repository 10033 | -7/Scraptown | Visited The Evicted 10052 | -7/Scraptown | Visited Observation Area 10094 | -7/Scraptown | Visited TADAMA 10131 | -7/Scraptown | Visited Cave Peace 10143 | -7/Scraptown | Visited Red Mages 10363 | -7/Scraptown | Visited UFD Registry 10363 | -7/Scraptown | Registered with UFD as "Nutmech" 10396 | -7/Scraptown | Visited Scrapoid Research Area 10447 | -7/Scraptown | Visited A0-MCA Data Center 10458 | -7/Scraptown | Given an A rating by A0-MCA 10465 | -7/Scraptown | Found A0-MCA's Component Scanner 10497 | -7/Scraptown | Visited Junk Repository 10649 | -7/Scraptown | Visited LU-1G1's Boring Crew 10671 | -7/Scraptown | Visited Scrapoid Pod Storage 10693 | -7/Scraptown | Found Scrapoid Pod 10737 | -7/Scraptown | Visited Derelict Rescue Squad 10747 | -7/Scraptown | Found DRS Beacon 10772 | -7/Scraptown | Visited DA-N13 Charitable Foundation 10786 | -7/Scraptown | Found DCF Scrap (29 items) 10840 | -7/Scraptown | Visited Scrap Suit Storage 10991 | -7/Scraptown | Visited Chapter 10 11021 | -7/Scraptown | Visited Science Testing Area 11761 | -7/Scraptown | Scrapoid Pod released 07S06-D (x5) 11917 | -7/Scraptown | Found Scrap Suit 12001 | -7/Scraptown | Met Optimus 12001 | -7/Scraptown | Accepted into 0bPrime 12090 | -7/Scraptown | Discovered new exit (range 5) 12095 | -7/Scraptown | Identified exit to Factory 12105 | -7/Scraptown | Entered Factory 12105 | -5/Factory | Accompanied by 5 allies 12105 | -5/Factory | Evolved 4 slots: Power x1, Utility x3 12417 | -5/Factory | Loaded intel: 8 recycling unit locations 12465 | -5/Factory | Lost 4 allies 12593 | -5/Factory | Identified exit to Upper Caves 12710 | -5/Factory | Found Prototype Launcher 12710 | -5/Factory | Identified Mni. Smartbomb Launcher 12849 | -5/Factory | Scrapoids reinforcements arrived? 12916 | -5/Factory | Lost 5 allies 12946 | -5/Factory | Lost 3 parts (1p1u1w) 13184 | -5/Factory | System corruption reached 10% 13204 | -5/Factory | Scrapoid reinforcements arrived 13241 | -5/Factory | Lost 8 parts (1p3n3u1w) 13287 | -5/Factory | Found Scrap Suit 13305 | -5/Factory | First assault squad dispatched 13466 | -5/Factory | Build established: Scavenger-Gunner 13937 | -5/Factory | Entered Upper Caves 13937 | -5/Upper Caves | Accompanied by 1 ally 14003 | -5/Upper Caves | Learned Factory emergency access door positions 14238 | -5/Upper Caves | Build established: Scavenger-Skirmisher 14375 | -5/Upper Caves | Encountered a Warlord checkpoint 14375 | -5/Upper Caves | Discovered new exit (range 12) 14392 | -5/Upper Caves | Identified exit to Upper Caves 14641 | -5/Upper Caves | Entered another Upper Caves area 14641 | -5/Upper Caves | Accompanied by 1 ally 14644 | -5/Upper Caves | Discovered new exit (range 15) 14674 | -5/Upper Caves | Identified exit to Factory 15498 | -5/Upper Caves | Discovered new exit (range 11) 15519 | -5/Upper Caves | Identified exit to Warlord 15840 | -5/Upper Caves | Entered Warlord 15840 | -5/Warlord | Accompanied by 1 ally 15898 | -5/Warlord | System corruption cleaned by Quarantine Array 16627 | -5/Warlord | Found Prototype Reactor 16627 | -5/Warlord | Identified Vortex Chain Reactor 16638 | -5/Warlord | Found Prototype Device 16638 | -5/Warlord | Identified Exp. Cloaking Device 16649 | -5/Warlord | Found Prototype Device 16649 | -5/Warlord | Identified System Purifier 16653 | -5/Warlord | Found Prototype Processor 16653 | -5/Warlord | Identified Exp. Target Analyzer 16660 | -5/Warlord | Found Prototype Hackware 16837 | -5/Warlord | Warlord's base attacked by MAIN.C 16898 | -5/Warlord | Build established: Scavenger-Mutant 17008 | -5/Warlord | Found Prototype Energy Gun 17008 | -5/Warlord | Identified Vortex Rifle 17171 | -5/Warlord | Spotted Striker 17181 | -5/Warlord | Spotted Striker 17187 | -5/Warlord | Warlord forces counterattacked 17203 | -5/Warlord | Destroyed 4T-VM7(B) 17222 | -5/Warlord | Spotted Striker 17256 | -5/Warlord | Lost 17 allies 17259 | -5/Warlord | Spotted Striker 17262 | -5/Warlord | Spotted Executioner 17320 | -5/Warlord | Lost 7 allies 17337 | -5/Warlord | Spotted Executioner 17337 | -5/Warlord | Spotted Executioner 17338 | -5/Warlord | Spotted Striker 17403 | -5/Warlord | Found Prototype Processor 17403 | -5/Warlord | Identified Exp. Core Analyzer 17413 | -5/Warlord | Lost 12 allies 17437 | -5/Warlord | Spotted Executioner 17443 | -5/Warlord | Core integrity fell below 50% 17482 | -5/Warlord | Lost 5 allies 17512 | -5/Warlord | Warlord base infiltrated, sounded retreat 17516 | -5/Warlord | Lost 8 parts (2n4u2w) 17559 | -5/Warlord | Lost 4 allies 17597 | -5/Warlord | Core integrity fell below 20% 17627 | -5/Warlord | Spotted Executioner 17641 | -5/Warlord | Rebuked by Warlord 17677 | -5/Warlord | Spotted B-86 Titan 17742 | -5/Warlord | P-70 Sage assimilated allied 8G-EQG(g) 17762 | -5/Warlord | Found Prototype Processor 17762 | -5/Warlord | Identified Exp. Melee Analysis Suite 17783 | -5/Warlord | Lost 9 allies 17791 | -5/Warlord | Discovered new exit (range 14) 17817 | -5/Warlord | Entered Proximity Caves 17840 | -4/Proximity Caves | Build established: Scavenger-Gunner 17924 | -4/Proximity Caves | Spotted B-86 Titan 17973 | -4/Proximity Caves | Lost 3 parts (1n2u) 17997 | -4/Proximity Caves | Destroyed B-86 Titan 18325 | -4/Proximity Caves | Discovered exit to Factory (range 12) 18329 | -4/Proximity Caves | Attracted the attention of an 0b10 checkpoint 18350 | -4/Proximity Caves | Entered Factory 18350 | -4/Factory | Evolved 2 slots: Propulsion x1, Utility x1 18371 | -4/Factory | Lost 5 parts (1p2n2w) 18419 | -4/Factory | Identified System Mapper 18427 | -4/Factory | Identified exit to Upper Caves 18427 | -4/Factory | Identified exit to Extension 18427 | -4/Factory | Identified exit to Armory 19353 | -4/Factory | Entered Extension 19377 | -4/Extension | Lost 3 parts (1p1u1w) 19589 | -4/Extension | Rescued a captive Derelict 19589 | -4/Extension | Rescued a captive Derelict 19648 | -4/Extension | Rescued a captive Derelict 19806 | -4/Extension | Watched by a mysterious "MATRIX" hacker. 19809 | -4/Extension | Rescued a captive Derelict 19897 | -4/Extension | Rescued a captive Derelict 19898 | -4/Extension | Rescued a captive Derelict 19911 | -4/Extension | Rescued a captive Derelict 20223 | -4/Extension | Spotted B-86 Titan 20242 | -4/Extension | Allies destroyed B-86 Titan 20244 | -4/Extension | Spotted B-86 Titan 20260 | -4/Extension | Allies destroyed B-86 Titan 20290 | -4/Extension | Lost 5 allies 20547 | -4/Extension | Scrapoids reinforcements arrived? 20568 | -4/Extension | Rescued A7 20572 | -4/Extension | Attached CPS modules to A7. 20606 | -4/Extension | Build established: Scavenger-Tank 20649 | -4/Extension | Identified exit to Cetus 20678 | -4/Extension | Rescued a captive Derelict 20803 | -4/Extension | Disrupted transfer network 20846 | -4/Extension | Rescued a captive Derelict 20847 | -4/Extension | Rescued a captive Derelict 20905 | -4/Extension | Rescued a captive Derelict 21103 | -4/Extension | First assault squad dispatched 21105 | -4/Extension | P-70 Sage assimilated allied LE-FIP(g) 21388 | -4/Extension | Disrupted transfer network 21398 | -4/Extension | Discovered new exit (range 10) 21529 | -4/Extension | Lost 7 allies 21551 | -4/Extension | Entered Cetus 21551 | -4/Cetus | Accompanied by 8 allies (A7) 21556 | -4/Cetus | Acquired a Cetus Manufacturing Module code from A7 21595 | -4/Cetus | Spotted Cetus Guard 21597 | -4/Cetus | Spotted Cetus Guard 21597 | -4/Cetus | Spotted Cetus Guard 21598 | -4/Cetus | Allies destroyed Cetus Guard 21598 | -4/Cetus | Spotted Cetus Guard 21601 | -4/Cetus | Allies destroyed Cetus Guard 21602 | -4/Cetus | Allies destroyed Cetus Guard 21610 | -4/Cetus | Destroyed Cetus Guard 21711 | -4/Cetus | Started Cetus Manufacturing Module 21723 | -4/Cetus | Escorted A7 to Cetus Mainframe 21736 | -4/Cetus | Manufactured an Enhanced Grunt 21761 | -4/Cetus | Manufactured an Enhanced Grunt 21786 | -4/Cetus | Manufactured an Enhanced Grunt 21811 | -4/Cetus | Manufactured an Enhanced Grunt 21813 | -4/Cetus | Discovered new exit (range 15) 21836 | -4/Cetus | Manufactured an Enhanced Grunt 21882 | -4/Cetus | Spotted Cetus Guard 21883 | -4/Cetus | Spotted Cetus Guard 21883 | -4/Cetus | Spotted Cetus Guard 21886 | -4/Cetus | Spotted Cetus Guard 21897 | -4/Cetus | Allies destroyed Cetus Guard 21898 | -4/Cetus | Allies destroyed Cetus Guard 21900 | -4/Cetus | Allies destroyed Cetus Guard 21905 | -4/Cetus | Allies destroyed Cetus Guard 21908 | -4/Cetus | Found Prototype Device 21908 | -4/Cetus | Identified Exp. Thermal Shield 21922 | -4/Cetus | Discovered new exit (range 16) 21930 | -4/Cetus | Met Revision 17 22035 | -4/Cetus | Murdered A7 22041 | -4/Cetus | Extracted ID and sensor layout for unrecognized location from A7's data core 22051 | -4/Cetus | Found Exp. Thermal Shield 22072 | -4/Cetus | Found Prototype Protection 22072 | -4/Cetus | Identified Med. Regenerative Plating 22173 | -4/Cetus | Entered Archives 22173 | -4/Archives | Accompanied by 6 allies 22231 | -4/Archives | Discovered new exit (range 15) 22270 | -4/Archives | Discovered new exit (range 16) 22421 | -4/Archives | Discovered new exit (range 16) 22510 | -4/Archives | Entered Hub_04(d) 22510 | -4/Hub_04(d) | Accompanied by 5 allies 22589 | -4/Hub_04(d) | Identified exit to Research 22630 | -4/Hub_04(d) | Network Hub disabled 22630 | -4/Hub_04(d) | Network Hub disabled 22679 | -4/Hub_04(d) | Lost 5 allies 22722 | -4/Hub_04(d) | Entered Research 22722 | -3/Research | Evolved 2 slots: Utility x2 22919 | -3/Research | Loaded intel: 5 recycling unit locations 22919 | -3/Research | Learned location of Protoforge (-2) 22922 | -3/Research | Revision forces began assault on 0b10 23056 | -3/Research | Met up with Revision 17++ 23138 | -3/Research | Found Prototype Launcher 23138 | -3/Research | Identified Adv. Micro-nuke Launcher 23173 | -3/Research | Identified exit to Testing 23304 | -3/Research | Central database locked down 23330 | -3/Research | Identified exit to Research 23350 | -3/Research | Found Quantum Capacitor 23422 | -3/Research | Research terminal network offline 23644 | -3/Research | Build established: Scavenger-Skirmisher 23666 | -3/Research | Spotted Executioner 23666 | -3/Research | Spotted Striker 23673 | -3/Research | Destroyed Striker 23675 | -3/Research | Destroyed Executioner 23876 | -3/Research | Scrapoids reinforcements arrived? 23915 | -3/Research | Spotted Executioner 23920 | -3/Research | Spotted Striker 23928 | -3/Research | Allies destroyed Revision 17++ 23928 | -3/Research | Allies destroyed Executioner 23933 | -3/Research | Allies destroyed Striker 23958 | -3/Research | Found Exp. Core Analyzer 23975 | -3/Research | Found Prototype Device 23975 | -3/Research | Identified Adv. Kinecellerator 24231 | -3/Research | Spotted Striker 24248 | -3/Research | Destroyed Striker 24267 | -3/Research | Lost 3 allies 24421 | -3/Research | Repaired Centrium Heavy Treads 24467 | -3/Research | Repaired Hcp. Storage Unit 24612 | -3/Research | Entered Testing 24737 | -3/Testing | Found Prototype Device 24737 | -3/Testing | Identified Exp. Hardlight Generator 24764 | -3/Testing | Central database locked down 24879 | -3/Testing | Found Prototype Energy Cannon 24879 | -3/Testing | Identified Disintegrator 24899 | -3/Testing | Spotted PG-5FUXSMVMCV 24930 | -3/Testing | Destroyed PG-5FUXSMVMCV 25223 | -3/Testing | Build established: Scavenger-Gunner 25290 | -3/Testing | Found Prototype Processor 25290 | -3/Testing | Identified Spectral Analyzer 25401 | -3/Testing | Found Prototype Energy Cannon 25401 | -3/Testing | Identified Potential Cannon 25413 | -3/Testing | Found Potential Cannon 25532 | -3/Testing | Found Prototype Energy Cannon 25532 | -3/Testing | Identified Hpw. Disruptor Cannon 25612 | -3/Testing | First assault squad dispatched 25690 | -3/Testing | Found Prototype Launcher 25690 | -3/Testing | Identified Tactical Quantum Warhead 25776 | -3/Testing | Found Prototype Launcher 25776 | -3/Testing | Identified Com. Tesla Bomb Launcher 25827 | -3/Testing | Entered Research 25827 | -2/Research | Evolved 2 slots: Utility x2 25891 | -2/Research | Build established: Scavenger-Skirmisher 26138 | -2/Research | Identified exit to Quarantine 26574 | -2/Research | Entered Quarantine 26638 | -2/Quarantine | Targeted by mysterious "MATRIX" hacker. 26723 | -2/Quarantine | Found Alien Artifact 26723 | -2/Quarantine | Identified Phase Redirector 26761 | -2/Quarantine | Found Alien Impact Weapon 26761 | -2/Quarantine | Identified Core Stripper 26901 | -2/Quarantine | Spotted Alpha 7 26972 | -2/Quarantine | Destroyed Alpha 7 26981 | -2/Quarantine | Found Prototype Ballistic Gun 26981 | -2/Quarantine | Identified Multirail 27007 | -2/Quarantine | Found Alien Launcher 27491 | -2/Quarantine | Cryocooling Duct disabled 27506 | -2/Quarantine | Ambient heat levels rising (+20) 27506 | -2/Quarantine | Non-combat units ordered to evacuate 27690 | -2/Quarantine | Found Alien Artifact 27806 | -2/Quarantine | Repaired Arm. Heavy Treads 27848 | -2/Quarantine | Discovered new exit (range 4) 27851 | -2/Quarantine | Identified exit to Access 27935 | -2/Quarantine | Spotted Fortress 27950 | -2/Quarantine | Destroyed Fortress 28028 | -2/Quarantine | Found Vortex Chain Reactor 28032 | -2/Quarantine | Found Vortex Chain Reactor 28041 | -2/Quarantine | Found Prototype Device 28041 | -2/Quarantine | Identified Exp. EM Shield 28044 | -2/Quarantine | Found Prototype Device 28044 | -2/Quarantine | Identified Exp. Force Field 28072 | -2/Quarantine | Found Prototype Device 28072 | -2/Quarantine | Identified Thermal Barrier 28191 | -2/Quarantine | Discovered new exit (range 6) 28191 | -2/Quarantine | Discovered new exit (range 6) 28197 | -2/Quarantine | Identified exit to Protoforge 28202 | -2/Quarantine | Identified exit to Section 7 28280 | -2/Quarantine | Entered Section 7 28330 | -2/Section 7 | Build established: Hacker-Tank 28546 | -2/Section 7 | Repaired Quantum Capacitor 28598 | -2/Section 7 | Spotted S7 Guard 28618 | -2/Section 7 | Destroyed S7 Guard 28639 | -2/Section 7 | Found Alien Artifact 28639 | -2/Section 7 | Identified Navigation Efficiency Matrix 28639 | -2/Section 7 | Installed Navigation Efficiency Matrix, process failed with unexpected side effects 28762 | -2/Section 7 | Discovered exit to Access (range 2) 28983 | -2/Section 7 | Found Alien Artifact 28983 | -2/Section 7 | Identified Integrity Redistributor 28983 | -2/Section 7 | Used Integrity Redistributor, redistributed integrity from core (-242) 28984 | -2/Section 7 | Core integrity fell below 50% 28998 | -2/Section 7 | Spotted Alpha 7 29065 | -2/Section 7 | Found Alien Artifact 29065 | -2/Section 7 | Identified Core Reset Matrix 29065 | -2/Section 7 | Identified Transdimensional Reconstructor 29065 | -2/Section 7 | Identified Sigix Terminator 29065 | -2/Section 7 | Used Core Reset Matrix 29069 | -2/Section 7 | Detected hypermatrix surge 29069 | -2/Section 7 | Sensed 21 artifacts in vicinity 29116 | -2/Section 7 | Found Microwarp Drive 29192 | -2/Section 7 | Found Integrated Reactor 29192 | -2/Section 7 | Installed Integrated Reactor, increased core energy generation (+10) 29280 | -2/Section 7 | First assault squad dispatched 29311 | -2/Section 7 | Spotted S7 Guard 29345 | -2/Section 7 | Found Core Membrane 29345 | -2/Section 7 | Installed Core Membrane, gained immunity to corruption 29355 | -2/Section 7 | Discovered exit to Access (range 3) 29356 | -2/Section 7 | Core integrity fell below 20% 29357 | -2/Section 7 | Entered Access 29357 | -1/Access | Evolved 2 slots: Utility x2 29595 | -1/Access | Spotted B-99 Colossus 30099 | -1/Access | Spotted B-99 Colossus 30130 | -1/Access | Lost 6 parts (1p4u1w) 30226 | -1/Access | Scrapoids reinforcements arrived? 30288 | -1/Access | Core integrity fell below 50% 30291 | -1/Access | Identified exit to Command 30316 | -1/Access | Discovered new exit (range 7) 30323 | -1/Access | Identified exit to Surface 30369 | *** | Heading to fleet! Last Messages --------------- 30358_ Arm. Heavy Treads destroyed. 30359_ G-73 Enforcer suffers critical hit (Burn). 30360_ Potential Cannon destroyed. 30361_ Hds. Centrium Heavy Treads destroyed. 30361_ Exp. Force Field destroyed. 30361_ Quantum Capacitor destroyed. 30361_ Penetrated by Slug. 30361_ Quantum Reactor destroyed. 30363_ Adv. Sensor Array destroyed. 30364_ Penetrated by Slug. 30364_ Adv. Medium Treads destroyed. 30364_ Penetrated by Slug. 30366_ Slug penetrates G-73 Enforcer. 30366_ G-73 Enforcer suffers critical hit (Destroy). 30366_ Slug penetrates G-73 Enforcer. 30366_ Imp. Quantum Reactor destroyed. 30369_ Penetrated by Slug. 30369_ Slug penetrates G-73 Enforcer. Map ----- +----------------------------------------------------+ | ?????????????????????????????????????????????????? | | ?????????????????????????????????????????????????? | | ?????????????????????????????????????????????????? | | ???????????????????????????????????????=?????????? | | ?????????????????????????????????????????????????? | | ?????????????????????????????????????????????????? | | ?????????????????????????????????????????????????? | | ?????????????????????????????????????????????????? | | ?????????????????????????????????????????????????? | | ?????????????????????????????????????????????????? | | ?????????????????????????????????????????????????? | | ?????????????????????????????????????????????????? | | ?????????????????????????????????????????????????? | | ?????????????????????????????????????????????????? | | ?????????????????????????????????????????????????? | | ?????????????????????????????????????????????????? | | ?????????????????????????????????????????????????? | | ?????????????????????????????????????????????????? | | ????????????????????????????????########?????????? | | ????????????????????????????????# ??????????? | | ???????????????????#""""""""""#?# ? #???????? | | ???????????????????# #?# #???????? | | ???????????????????# #?# ????????? | | ???????????????????# #?# "" #???????? | | ???????????????????# "" #?# """" #???????? | | ???????????????????# "@ #?# """" #???????? | | ???????????????????# ### """ #???????? | | ???????????????????# # " """ #???????? | | ???????????????????# # " "" #??""???? | | ??????????????????## g #"" " #??"T???? | | ??????????????????# ; " #???????? | | ??????????????????##"" g #;; #???????? | | ??????????????????#; g # # ! = #???????? | | ??????????????????#; gg ### #???????? | | ?????????????????# [!g #?# #???????? | | ?????????????????## |h gg #?# #???????? | | ?????????????????# ! #?# #???????? | | ###??+############# h !% #####+######???????? | | ! ?????? | | ?????? | | ##????########+####################+#####????????? | | ?????????????????????????????????????????????????? | | ?????????????????????????????????????????????????? | | ???????????????????????????????????????=?????????? | | ?????????????????????????????????????????????????? | | ?????????????????????????????????????????????????? | | ???????????????????????????????????"?"???????????? | | ???????????????????????????????????"Y"???????????? | | ???????????????????????????????????"""???????????? | | ?????????????????????????????????????????????????? | +----------------------------------------------------+ Best States ------------- Heat Dissipation 142 Energy Generation 65 Energy Capacity 700 Matter Stores 300 Matter Capacity 450 Sight Range 16 Robot Scan Range 16 Terrain Scan Range 20 Terrain Scan Density 210 Jamming Range 16 Cloak Strength 4 Base Temperature (-) 200 Armor Coverage 600 Resistance: KI 25 Resistance: TH 30 Resistance: EM 75 Evasion (%) 55 Target Analysis 10 Core Analysis 8 Recoil Reduction 5 Particle Charging 25 Kinecelleration 50 Offensive Hacking 20 Item Schematics ----------------- None Robot Schematics ------------------ None Fabricated ------------ O-24 Administrator | x1 | -7/Factory | Preloaded Repaired ---------- Arm. Treads | 63% | -8/Materials Centrium Heavy Treads | 20% | -3/Research Hcp. Storage Unit | 40% | -3/Research Arm. Heavy Treads | 36% | -2/Quarantine Quantum Capacitor | 38% | -2/Section 7 Studied --------- None Alien Tech Used ----------------- Phase Redirector Core Stripper Navigation Efficiency Matrix Integrity Redistributor Core Reset Matrix Integrated Reactor Microwarp Drive Core Membrane Achievements -------------- None Challenges ------------ None Game ------ Seed StealthContainmentMace Manual? 0 Play Time 04:52:53 Cumulative 364.1 hours Start 2026.02.27 @ 14:47:39 End 2026.02.27 @ 20:24:12 Sessions 1 Manual Loads 0 Difficulty Rogue Special Mode None Game No. 229 Rogue 229 Adventurer 0 Explorer 0 Win Type 2 Total 14 Types 9/1/2/1/0/0/0/1/0/0 Lore% 93 Gallery% 79 Achievement% 69 Wizard Run 0 Options --------- Layout 1 ASCII 0 Keyboard 0 Movement Mouse Keybinds 0 Fullscreen 2 Font 32/SmallcapsGlow Map View 50x35 Zoom Use 0% Tactical HUD 1 Map Filters NONE Filters NONE Steam 1 RUN: af63894b-c93a-4518-952f-2103d39ff725